[Event "Early-Titled-Tuesday-Blitz-May-07-2024"]
[Site "Chess.com"]
[Date "2024.05.07"]
[Round "10"]
[White "DanielNaroditsky"]
[Black "tptagain"]
[Result "1-0"]
[WhiteElo "3070"]
[BlackElo "2925"]
[TimeControl "180+1"]
[EndTime "10:04:26 PDT"]
[Termination "DanielNaroditsky won on time"]

1. e4 {[%clk 0:02:56.4]} 1... c6 {[%clk 0:02:59.5]} 2. d4 {[%clk 0:02:56.1]}
2... d5 {[%clk 0:02:59.8]} 3. exd5 {[%clk 0:02:57]} 3... cxd5 {[%clk 0:02:59.9]}
4. Nf3 {[%clk 0:02:57.9]} 4... Nc6 {[%clk 0:02:58.4]} 5. Bb5 {[%clk 0:02:58]}
5... Nf6 {[%clk 0:02:50.8]} 6. c4 {[%clk 0:02:57.8]} 6... dxc4 {[%clk 0:02:42]}
7. Nc3 {[%clk 0:02:57.3]} 7... e6 {[%clk 0:02:41.9]} 8. O-O {[%clk 0:02:43.4]}
8... Be7 {[%clk 0:02:39.3]} 9. Bxc4 {[%clk 0:02:34.1]} 9... O-O {[%clk
0:02:37.2]} 10. Bg5 {[%clk 0:02:34.8]} 10... h6 {[%clk 0:02:36.7]} 11. Bf4
{[%clk 0:02:34.3]} 11... b6 {[%clk 0:02:33]} 12. d5 {[%clk 0:02:24.3]} 12... Na5
{[%clk 0:02:31.1]} 13. Bb5 {[%clk 0:02:04.1]} 13... exd5 {[%clk 0:02:17.6]} 14.
Nd4 {[%clk 0:02:02.1]} 14... Bd7 {[%clk 0:02:14.2]} 15. Re1 {[%clk 0:02:01]}
15... Re8 {[%clk 0:02:10.9]} 16. Qf3 {[%clk 0:02:01.1]} 16... Bc5 {[%clk
0:01:56.5]} 17. Bxd7 {[%clk 0:01:28.8]} 17... Qxd7 {[%clk 0:01:53.3]} 18. Red1
{[%clk 0:01:27]} 18... Nc4 {[%clk 0:01:07.2]} 19. Nb3 {[%clk 0:00:41.4]} 19...
Rad8 {[%clk 0:01:01.9]} 20. Nxc5 {[%clk 0:00:36.4]} 20... bxc5 {[%clk
0:01:02.8]} 21. b3 {[%clk 0:00:37.2]} 21... Ne5 {[%clk 0:01:02.3]} 22. Bxe5
{[%clk 0:00:30.1]} 22... Rxe5 {[%clk 0:01:03.2]} 23. Na4 {[%clk 0:00:28.7]}
23... d4 {[%clk 0:01:03]} 24. h3 {[%clk 0:00:27.3]} 24... Qe7 {[%clk 0:00:49.6]}
25. Rac1 {[%clk 0:00:27.6]} 25... a5 {[%clk 0:00:46.5]} 26. Nb2 {[%clk
0:00:27.9]} 26... Re2 {[%clk 0:00:41.6]} 27. Nd3 {[%clk 0:00:28.5]} 27... Rc8
{[%clk 0:00:34.1]} 28. Nxc5 {[%clk 0:00:18.4]} 28... Rxa2 {[%clk 0:00:25.4]} 29.
Re1 {[%clk 0:00:18.3]} 29... Qf8 {[%clk 0:00:17]} 30. Qf5 {[%clk 0:00:13]} 30...
Rd8 {[%clk 0:00:15.6]} 31. Nd3 {[%clk 0:00:10.1]} 31... Ra3 {[%clk 0:00:15.8]}
32. Ne5 {[%clk 0:00:07.5]} 32... Rxb3 {[%clk 0:00:13.6]} 33. Nc6 {[%clk
0:00:07.9]} 33... Re8 {[%clk 0:00:10.9]} 34. Rxe8 {[%clk 0:00:07.7]} 34... Qxe8
{[%clk 0:00:10.9]} 35. Nxd4 {[%clk 0:00:06]} 35... Rb8 {[%clk 0:00:04.7]} 36.
Qxa5 {[%clk 0:00:06.2]} 36... Qe4 {[%clk 0:00:04.9]} 37. Nf3 {[%clk 0:00:05.1]}
37... Qf4 {[%clk 0:00:05.3]} 38. Re1 {[%clk 0:00:05.3]} 38... g6 {[%clk
0:00:04.8]} 39. Qa7 {[%clk 0:00:05.3]} 39... Kg7 {[%clk 0:00:04.5]} 40. g3
{[%clk 0:00:05.3]} 40... Qd6 {[%clk 0:00:04.4]} 41. Ne5 {[%clk 0:00:05.9]} 41...
Rf8 {[%clk 0:00:04.7]} 42. Nf3 {[%clk 0:00:05.5]} 42... h5 {[%clk 0:00:05]} 43.
Ng5 {[%clk 0:00:05.1]} 43... Qd5 {[%clk 0:00:05.6]} 44. Ne6+ {[%clk 0:00:05.3]}
44... Kg8 {[%clk 0:00:03.7]} 45. Nxf8 {[%clk 0:00:05.8]} 45... Kxf8 {[%clk
0:00:04.4]} 46. Qa1 {[%clk 0:00:04.9]} 46... Qd6 {[%clk 0:00:02.9]} 47. Rd1
{[%clk 0:00:05]} 47... Qb6 {[%clk 0:00:02.3]} 48. Rb1 {[%clk 0:00:04.8]} 48...
Qd6 {[%clk 0:00:02.3]} 49. Rc1 {[%clk 0:00:04.5]} 49... Kg7 {[%clk 0:00:01.9]}
50. Rd1 {[%clk 0:00:04.5]} 50... Qe6 {[%clk 0:00:02.1]} 51. Qd4 {[%clk
0:00:04.8]} 51... Qc6 {[%clk 0:00:02.4]} 52. Rd3 {[%clk 0:00:04.9]} 52... Qe6
{[%clk 0:00:02.9]} 53. Rf3 {[%clk 0:00:04.2]} 53... Qc6 {[%clk 0:00:02.2]} 54.
Kg2 {[%clk 0:00:02.6]} 54... Qe6 {[%clk 0:00:02.8]} 55. Qc3 {[%clk 0:00:02.6]}
55... Qd6 {[%clk 0:00:03.1]} 56. Qb2 {[%clk 0:00:02.6]} 56... Qc6 {[%clk
0:00:02.6]} 57. Qd4 {[%clk 0:00:02.7]} 57... Qe6 {[%clk 0:00:03]} 58. Qf4 {[%clk
0:00:03.2]} 58... Nd5 {[%clk 0:00:01.8]} 59. Qd2 {[%clk 0:00:02.2]} 59... Ne7
{[%clk 0:00:01.7]} 60. Qd3 {[%clk 0:00:02.3]} 60... Nf5 {[%clk 0:00:01.5]} 61.
Rf4 {[%clk 0:00:02.9]} 61... Ne7 {[%clk 0:00:01.7]} 62. Re4 {[%clk 0:00:03.3]}
62... Qc6 {[%clk 0:00:02.1]} 63. Qf3 {[%clk 0:00:03.6]} 63... Nf5 {[%clk
0:00:02.2]} 64. Rf4 {[%clk 0:00:03.7]} 64... Qxf3+ {[%clk 0:00:02.5]} 65. Kxf3
{[%clk 0:00:04.1]} 65... Nh6 {[%clk 0:00:03.2]} 66. Ra4 {[%clk 0:00:03.8]} 66...
g5 {[%clk 0:00:03.6]} 67. Ke4 {[%clk 0:00:04]} 67... Kg6 {[%clk 0:00:04.1]} 68.
Ra6+ {[%clk 0:00:04.1]} 68... f6 {[%clk 0:00:04.6]} 69. Ra5 {[%clk 0:00:03.8]}
69... Nf7 {[%clk 0:00:04.8]} 70. Kd5 {[%clk 0:00:04.4]} 70... Ne5 {[%clk
0:00:05.1]} 71. Ra3 {[%clk 0:00:05.1]} 71... g4 {[%clk 0:00:04.9]} 72. hxg4
{[%clk 0:00:03.6]} 72... hxg4 {[%clk 0:00:05.4]} 73. Ke4 {[%clk 0:00:03.9]}
73... Kg5 {[%clk 0:00:05.9]} 74. Ra8 {[%clk 0:00:03.9]} 74... Ng6 {[%clk
0:00:06.3]} 75. Rg8 {[%clk 0:00:04.1]} 75... f5+ {[%clk 0:00:06.8]} 76. Kd4
{[%clk 0:00:03.7]} 76... Kf6 {[%clk 0:00:07.3]} 77. Re8 {[%clk 0:00:04.1]} 77...
Kg5 {[%clk 0:00:06.7]} 78. Kd5 {[%clk 0:00:04.1]} 78... f4 {[%clk 0:00:07.1]}
79. Ke4 {[%clk 0:00:03.5]} 79... fxg3 {[%clk 0:00:07]} 80. fxg3 {[%clk
0:00:04.4]} 80... Kf6 {[%clk 0:00:06.9]} 81. Rg8 {[%clk 0:00:04.7]} 81... Kg5
{[%clk 0:00:07.3]} 82. Ra8 {[%clk 0:00:03.6]} 82... Kf6 {[%clk 0:00:07.6]} 83.
Ra5 {[%clk 0:00:04.3]} 1-0

[Event "Early-Titled-Tuesday-Blitz-May-07-2024"]
[Site "Chess.com"]
[Date "2024.05.07"]
[Round "10"]
[White "Doublekk14"]
[Black "UF_10"]
[Result "0-1"]
[WhiteElo "2358"]
[BlackElo "2503"]
[TimeControl "180+1"]
[EndTime "10:04:33 PDT"]
[Termination "UF_10 won on time"]

1. c4 {[%clk 0:02:36.4]} 1... e5 {[%clk 0:02:58]} 2. Nc3 {[%clk 0:02:35.9]} 2...
Bb4 {[%clk 0:02:58.6]} 3. Qc2 {[%clk 0:02:29.5]} 3... Nc6 {[%clk 0:02:56.7]} 4.
e3 {[%clk 0:02:28.5]} 4... Nf6 {[%clk 0:02:55.4]} 5. d3 {[%clk 0:02:28.3]} 5...
O-O {[%clk 0:02:49.9]} 6. Bd2 {[%clk 0:02:26.6]} 6... d5 {[%clk 0:02:48.5]} 7.
cxd5 {[%clk 0:02:26.4]} 7... Nxd5 {[%clk 0:02:49.2]} 8. a3 {[%clk 0:02:26.4]}
8... Be7 {[%clk 0:02:46.4]} 9. Nf3 {[%clk 0:02:25.2]} 9... Be6 {[%clk
0:02:46.4]} 10. Be2 {[%clk 0:02:24.6]} 10... Kh8 {[%clk 0:02:44.9]} 11. O-O
{[%clk 0:02:20.9]} 11... f6 {[%clk 0:02:45.3]} 12. Ne4 {[%clk 0:02:20.2]} 12...
Qd7 {[%clk 0:02:31.5]} 13. Nc5 {[%clk 0:02:16.9]} 13... Bxc5 {[%clk 0:02:31.8]}
14. Qxc5 {[%clk 0:02:16.6]} 14... Rad8 {[%clk 0:02:32.7]} 15. b4 {[%clk
0:02:13.2]} 15... a6 {[%clk 0:02:30.6]} 16. Rac1 {[%clk 0:02:09.3]} 16... Nb6
{[%clk 0:02:18.1]} 17. Qc2 {[%clk 0:01:51.2]} 17... Bf5 {[%clk 0:02:17.8]} 18.
e4 {[%clk 0:01:46]} 18... Bg4 {[%clk 0:02:17.2]} 19. Be3 {[%clk 0:01:45.5]}
19... Rf7 {[%clk 0:02:11.1]} 20. Rfd1 {[%clk 0:01:44.2]} 20... Bxf3 {[%clk
0:02:10.7]} 21. Bxf3 {[%clk 0:01:44.1]} 21... Nd4 {[%clk 0:02:11.6]} 22. Bxd4
{[%clk 0:01:44.1]} 22... Qxd4 {[%clk 0:02:11.2]} 23. Qc5 {[%clk 0:01:35.6]}
23... g6 {[%clk 0:02:00.5]} 24. Bg4 {[%clk 0:01:24.4]} 24... Qd6 {[%clk
0:01:38.1]} 25. Be2 {[%clk 0:01:19.9]} 25... Kg7 {[%clk 0:01:33.8]} 26. Qxd6
{[%clk 0:01:08.6]} 26... Rxd6 {[%clk 0:01:33.6]} 27. Rc2 {[%clk 0:01:08.1]}
27... Rfd7 {[%clk 0:01:28.3]} 28. Rdc1 {[%clk 0:01:08]} 28... c6 {[%clk
0:01:27]} 29. f3 {[%clk 0:01:06]} 29... Rd4 {[%clk 0:01:24.3]} 30. Kf2 {[%clk
0:01:03.7]} 30... Nc8 {[%clk 0:01:17.3]} 31. Ke3 {[%clk 0:01:02.5]} 31... Nd6
{[%clk 0:01:18.1]} 32. f4 {[%clk 0:00:55.8]} 32... Kf7 {[%clk 0:01:03.9]} 33.
fxe5 {[%clk 0:00:55.8]} 33... fxe5 {[%clk 0:01:04.2]} 34. Rf1+ {[%clk
0:00:55.7]} 34... Ke7 {[%clk 0:01:04.5]} 35. Rc5 {[%clk 0:00:55]} 35... Nf7
{[%clk 0:01:01.9]} 36. h4 {[%clk 0:00:44.7]} 36... Kd6 {[%clk 0:01:01.2]} 37.
Bg4 {[%clk 0:00:33.4]} 37... Re7 {[%clk 0:00:58.9]} 38. Rc2 {[%clk 0:00:20.7]}
38... Nh6 {[%clk 0:00:55.2]} 39. Bh3 {[%clk 0:00:20.4]} 39... Nf7 {[%clk
0:00:53.8]} 40. Rcf2 {[%clk 0:00:20]} 40... Nd8 {[%clk 0:00:54.3]} 41. Rf6+
{[%clk 0:00:19.5]} 41... Kc7 {[%clk 0:00:54.8]} 42. Rf8 {[%clk 0:00:18.4]} 42...
Kb6 {[%clk 0:00:53]} 43. Rh8 {[%clk 0:00:15.1]} 43... a5 {[%clk 0:00:52.1]} 44.
bxa5+ {[%clk 0:00:14.3]} 44... Kxa5 {[%clk 0:00:53]} 45. Rff8 {[%clk 0:00:14.2]}
45... Ne6 {[%clk 0:00:45.8]} 46. Ra8+ {[%clk 0:00:13.8]} 46... Kb6 {[%clk
0:00:44.6]} 47. Bxe6 {[%clk 0:00:10.1]} 47... Rxe6 {[%clk 0:00:45.5]} 48. Rad8
{[%clk 0:00:09.9]} 48... Rxd8 {[%clk 0:00:40.8]} 49. Rxd8 {[%clk 0:00:09.7]}
49... Re7 {[%clk 0:00:41.7]} 50. g4 {[%clk 0:00:06.5]} 50... Kc5 {[%clk
0:00:39.7]} 51. d4+ {[%clk 0:00:03.7]} 51... exd4+ {[%clk 0:00:38.9]} 52. Rxd4
{[%clk 0:00:04.2]} 52... b5 {[%clk 0:00:38.1]} 53. Rd1 {[%clk 0:00:03.7]} 53...
Ra7 {[%clk 0:00:38]} 54. Rd3 {[%clk 0:00:03.6]} 54... Kc4 {[%clk 0:00:35.5]} 55.
Rd4+ {[%clk 0:00:03.9]} 55... Kc5 {[%clk 0:00:34.8]} 56. Rd3 {[%clk 0:00:03.9]}
56... Re7 {[%clk 0:00:34.3]} 57. Kf4 {[%clk 0:00:04]} 57... Kc4 {[%clk
0:00:33.8]} 58. Re3 {[%clk 0:00:03.4]} 58... c5 {[%clk 0:00:34]} 59. Kg5 {[%clk
0:00:03.2]} 59... Kd4 {[%clk 0:00:32.9]} 60. Re1 {[%clk 0:00:01.8]} 60... Rxe4
{[%clk 0:00:32.3]} 61. Rd1+ {[%clk 0:00:02.4]} 61... Ke5 {[%clk 0:00:31.4]} 62.
Rc1 {[%clk 0:00:02.4]} 62... Rc4 {[%clk 0:00:29.8]} 63. Re1+ {[%clk 0:00:02.2]}
63... Kd6 {[%clk 0:00:29]} 64. h5 {[%clk 0:00:02]} 64... gxh5 {[%clk 0:00:28.8]}
65. gxh5 {[%clk 0:00:02.3]} 65... Rc3 {[%clk 0:00:26.2]} 66. Rd1+ {[%clk
0:00:02.5]} 66... Ke6 {[%clk 0:00:25.4]} 67. Re1+ {[%clk 0:00:02.6]} 67... Kf7
{[%clk 0:00:24.4]} 68. Rf1+ {[%clk 0:00:02.2]} 68... Kg7 {[%clk 0:00:21.7]} 69.
h6+ {[%clk 0:00:02.5]} 69... Kg8 {[%clk 0:00:22.2]} 70. Rf5 {[%clk 0:00:02.9]}
70... b4 {[%clk 0:00:18.7]} 71. axb4 {[%clk 0:00:02.8]} 71... cxb4 {[%clk
0:00:19.6]} 72. Rb5 {[%clk 0:00:03.1]} 72... b3 {[%clk 0:00:20]} 73. Rb8+ {[%clk
0:00:03.2]} 73... Kf7 {[%clk 0:00:20]} 74. Rb7+ {[%clk 0:00:03.9]} 74... Ke6
{[%clk 0:00:20.1]} 75. Rxh7 {[%clk 0:00:03.9]} 75... Rc5+ {[%clk 0:00:20.3]} 76.
Kf4 {[%clk 0:00:03.7]} 76... Rb5 {[%clk 0:00:21.2]} 77. Rg7 {[%clk 0:00:03.8]}
77... b2 {[%clk 0:00:21.6]} 78. Rg6+ {[%clk 0:00:03.1]} 78... Kf7 {[%clk
0:00:21]} 79. Rg7+ {[%clk 0:00:02.9]} 79... Kf6 {[%clk 0:00:21.6]} 80. Rg8
{[%clk 0:00:02.4]} 80... b1=Q {[%clk 0:00:21.8]} 81. h7 {[%clk 0:00:02.7]} 81...
Qxh7 {[%clk 0:00:21.6]} 0-1

[Event "Early-Titled-Tuesday-Blitz-May-07-2024"]
[Site "Chess.com"]
[Date "2024.05.07"]
[Round "10"]
[White "nihalsarin"]
[Black "wonderfultime"]
[Result "1-0"]
[WhiteElo "3160"]
[BlackElo "3121"]
[TimeControl "180+1"]
[EndTime "10:04:42 PDT"]
[Termination "nihalsarin won by resignation"]

1. d4 {[%clk 0:02:55.4]} 1... d5 {[%clk 0:03:00.3]} 2. Nf3 {[%clk 0:02:54]} 2...
Nf6 {[%clk 0:03:00.5]} 3. Bg5 {[%clk 0:02:54]} 3... Ne4 {[%clk 0:02:56.4]} 4.
Bh4 {[%clk 0:02:54]} 4... c6 {[%clk 0:02:56.5]} 5. e3 {[%clk 0:02:53.1]} 5...
Qb6 {[%clk 0:02:54.9]} 6. Qc1 {[%clk 0:02:47.7]} 6... Bf5 {[%clk 0:02:53.1]} 7.
Nbd2 {[%clk 0:02:44.8]} 7... e6 {[%clk 0:02:51.4]} 8. Be2 {[%clk 0:02:39.5]}
8... Nd7 {[%clk 0:02:51.3]} 9. O-O {[%clk 0:02:39.6]} 9... Bg4 {[%clk
0:02:08.7]} 10. c4 {[%clk 0:02:26]} 10... Nxd2 {[%clk 0:02:03.5]} 11. Qxd2
{[%clk 0:02:26.9]} 11... Qb4 {[%clk 0:02:01.2]} 12. Qc2 {[%clk 0:02:08.2]} 12...
dxc4 {[%clk 0:01:34.1]} 13. Bxc4 {[%clk 0:02:01.1]} 13... Bxf3 {[%clk
0:01:30.2]} 14. gxf3 {[%clk 0:02:02]} 14... Be7 {[%clk 0:01:29]} 15. a3 {[%clk
0:02:01]} 15... Qa5 {[%clk 0:01:28.7]} 16. Bg3 {[%clk 0:01:52]} 16... O-O {[%clk
0:01:25.4]} 17. b4 {[%clk 0:01:51.5]} 17... Qh5 {[%clk 0:01:25.7]} 18. Be2
{[%clk 0:01:50.7]} 18... Rfc8 {[%clk 0:01:18.5]} 19. Rab1 {[%clk 0:01:48.9]}
19... Bh4 {[%clk 0:01:04.9]} 20. Qe4 {[%clk 0:01:35.4]} 20... Bxg3 {[%clk
0:01:02.9]} 21. hxg3 {[%clk 0:01:36.3]} 21... Qg6 {[%clk 0:01:00.8]} 22. Kg2
{[%clk 0:01:27.2]} 22... Nf6 {[%clk 0:00:57.5]} 23. Qh4 {[%clk 0:01:24.6]} 23...
h6 {[%clk 0:00:52.2]} 24. Rfc1 {[%clk 0:01:17.8]} 24... a5 {[%clk 0:00:47.1]}
25. bxa5 {[%clk 0:00:37.8]} 25... Rxa5 {[%clk 0:00:48]} 26. Rxb7 {[%clk
0:00:36.8]} 26... Rxa3 {[%clk 0:00:48]} 27. Rb2 {[%clk 0:00:37.4]} 27... Qf5
{[%clk 0:00:43.6]} 28. Rc5 {[%clk 0:00:33.2]} 28... Qg6 {[%clk 0:00:40.2]} 29.
Rbc2 {[%clk 0:00:31.9]} 29... Nd7 {[%clk 0:00:37.1]} 30. R5c3 {[%clk 0:00:27.4]}
30... Rxc3 {[%clk 0:00:33.2]} 31. Rxc3 {[%clk 0:00:28.3]} 31... Qf6 {[%clk
0:00:30.5]} 32. Qe4 {[%clk 0:00:27.7]} 32... e5 {[%clk 0:00:16.5]} 33. dxe5
{[%clk 0:00:13.6]} 33... Nxe5 {[%clk 0:00:17]} 34. f4 {[%clk 0:00:14]} 34... Ng6
{[%clk 0:00:15.5]} 35. Ra3 {[%clk 0:00:10.8]} 35... Qd6 {[%clk 0:00:15.4]} 36.
Ra7 {[%clk 0:00:09.7]} 36... Qd5 {[%clk 0:00:13.7]} 37. Qxd5 {[%clk 0:00:09.9]}
37... cxd5 {[%clk 0:00:14.6]} 38. Rd7 {[%clk 0:00:10.7]} 38... Kf8 {[%clk
0:00:09.6]} 39. Rxd5 {[%clk 0:00:09.8]} 39... Ne7 {[%clk 0:00:10.3]} 40. Ra5
{[%clk 0:00:09.7]} 40... g6 {[%clk 0:00:10.8]} 41. Ra7 {[%clk 0:00:09.4]} 41...
Rc2 {[%clk 0:00:10.7]} 42. Bf3 {[%clk 0:00:07.5]} 42... h5 {[%clk 0:00:10.8]}
43. e4 {[%clk 0:00:07.5]} 43... Rd2 {[%clk 0:00:10.4]} 44. Ra8+ {[%clk
0:00:06.7]} 44... Kg7 {[%clk 0:00:10.4]} 45. Ra3 {[%clk 0:00:07.5]} 45... Kf8
{[%clk 0:00:10.6]} 46. Kf1 {[%clk 0:00:07.9]} 46... Rb2 {[%clk 0:00:10.6]} 47.
Ke1 {[%clk 0:00:08.2]} 47... Rb1+ {[%clk 0:00:10.4]} 48. Ke2 {[%clk 0:00:08.6]}
48... Rb2+ {[%clk 0:00:11.3]} 49. Kf1 {[%clk 0:00:09.3]} 49... Rc2 {[%clk
0:00:11.1]} 50. Rd3 {[%clk 0:00:08.5]} 50... Rb2 {[%clk 0:00:11.4]} 51. e5
{[%clk 0:00:08.8]} 51... Rb4 {[%clk 0:00:08.9]} 52. Kg2 {[%clk 0:00:07.2]} 52...
h4 {[%clk 0:00:07.9]} 53. Ba8 {[%clk 0:00:06.1]} 53... hxg3 {[%clk 0:00:07.7]}
54. fxg3 {[%clk 0:00:07]} 54... Nf5 {[%clk 0:00:08]} 55. Kh3 {[%clk 0:00:06.1]}
55... Ke7 {[%clk 0:00:07.3]} 56. Bc6 {[%clk 0:00:05.8]} 56... Rd4 {[%clk
0:00:04.2]} 57. Rb3 {[%clk 0:00:04.8]} 57... Kf8 {[%clk 0:00:04.5]} 58. Rb8+
{[%clk 0:00:04.9]} 58... Kg7 {[%clk 0:00:04.5]} 59. Rb3 {[%clk 0:00:05.6]} 59...
Rd2 {[%clk 0:00:03]} 60. Be4 {[%clk 0:00:05.4]} 60... Nd4 {[%clk 0:00:02.8]} 61.
Rb7 {[%clk 0:00:05.8]} 61... Ne6 {[%clk 0:00:03.3]} 62. Kg4 {[%clk 0:00:04.8]}
62... Kf8 {[%clk 0:00:03.6]} 63. Rb8+ {[%clk 0:00:05.1]} 63... Ke7 {[%clk
0:00:03.3]} 64. Rb7+ {[%clk 0:00:05.4]} 64... Kf8 {[%clk 0:00:04]} 65. Rb6
{[%clk 0:00:06.2]} 65... Rd4 {[%clk 0:00:04.2]} 66. Bxg6 {[%clk 0:00:05.9]}
66... Nc5 {[%clk 0:00:04.4]} 67. Bf5 {[%clk 0:00:05.1]} 67... Kg7 {[%clk
0:00:04.2]} 68. Rc6 {[%clk 0:00:05.4]} 68... Na4 {[%clk 0:00:02.4]} 69. Rc7
{[%clk 0:00:05.7]} 69... Kf8 {[%clk 0:00:02.3]} 70. Kg5 {[%clk 0:00:05.9]} 70...
Nb6 {[%clk 0:00:02.7]} 71. e6 {[%clk 0:00:05.3]} 71... fxe6 {[%clk 0:00:01.9]}
72. Bxe6 {[%clk 0:00:06.2]} 72... Ke8 {[%clk 0:00:02.2]} 73. Kf6 {[%clk
0:00:06.1]} 73... Kd8 {[%clk 0:00:01.9]} 74. Rc6 {[%clk 0:00:06.4]} 74... Nd5+
{[%clk 0:00:01.3]} 75. Bxd5 {[%clk 0:00:06.6]} 75... Rxd5 {[%clk 0:00:02.2]} 76.
Re6 {[%clk 0:00:07.1]} 76... Kd7 {[%clk 0:00:02.5]} 77. g4 {[%clk 0:00:07.3]}
77... Rd4 {[%clk 0:00:02.6]} 78. Kf5 {[%clk 0:00:04.8]} 78... Rxf4+ {[%clk
0:00:02]} 79. Kxf4 {[%clk 0:00:05.7]} 79... Kxe6 {[%clk 0:00:02.9]} 80. Kg5
{[%clk 0:00:06.4]} 1-0

[Event "Early-Titled-Tuesday-Blitz-May-07-2024"]
[Site "Chess.com"]
[Date "2024.05.07"]
[Round "10"]
[White "Yeritsyaan"]
[Black "KuzubovYuriy"]
[Result "1/2-1/2"]
[WhiteElo "2725"]
[BlackElo "2947"]
[TimeControl "180+1"]
[EndTime "10:04:48 PDT"]
[Termination "Game drawn - insufficient material"]

1. e4 {[%clk 0:03:00.9]} 1... e6 {[%clk 0:02:59.3]} 2. d3 {[%clk 0:03:00]} 2...
d5 {[%clk 0:03:00]} 3. Nd2 {[%clk 0:02:59.8]} 3... Nc6 {[%clk 0:02:58.3]} 4.
Ngf3 {[%clk 0:02:59.4]} 4... Be7 {[%clk 0:02:49.8]} 5. g3 {[%clk 0:02:58.3]}
5... dxe4 {[%clk 0:02:49]} 6. Nxe4 {[%clk 0:02:55.5]} 6... Nf6 {[%clk 0:02:49]}
7. Nxf6+ {[%clk 0:02:55.4]} 7... Bxf6 {[%clk 0:02:49.1]} 8. Bg2 {[%clk 0:02:56]}
8... Bd7 {[%clk 0:02:49]} 9. O-O {[%clk 0:02:53.1]} 9... Ne7 {[%clk 0:02:48.6]}
10. d4 {[%clk 0:02:46.7]} 10... Bc6 {[%clk 0:02:48.3]} 11. c3 {[%clk 0:02:46.6]}
11... Bd5 {[%clk 0:02:43.6]} 12. Re1 {[%clk 0:02:45.9]} 12... Qd7 {[%clk
0:02:40.8]} 13. Bf4 {[%clk 0:02:39.9]} 13... c6 {[%clk 0:02:38.5]} 14. b3 {[%clk
0:02:36.5]} 14... Ng6 {[%clk 0:02:30.1]} 15. Be3 {[%clk 0:02:30.2]} 15... a5
{[%clk 0:02:29.9]} 16. c4 {[%clk 0:02:27]} 16... Bxf3 {[%clk 0:02:29.4]} 17.
Qxf3 {[%clk 0:02:21.2]} 17... O-O {[%clk 0:02:27.6]} 18. Rad1 {[%clk 0:02:21.2]}
18... Ne7 {[%clk 0:02:21.6]} 19. h4 {[%clk 0:02:13.5]} 19... Rad8 {[%clk
0:02:18.1]} 20. h5 {[%clk 0:02:11.5]} 20... Nf5 {[%clk 0:02:14.8]} 21. d5 {[%clk
0:01:58.7]} 21... Nxe3 {[%clk 0:02:04.2]} 22. Rxe3 {[%clk 0:01:56.1]} 22... c5
{[%clk 0:01:52.3]} 23. h6 {[%clk 0:01:53.1]} 23... Bd4 {[%clk 0:01:44.8]} 24.
hxg7 {[%clk 0:01:53.2]} 24... Bxg7 {[%clk 0:01:35.8]} 25. Qh5 {[%clk 0:01:39.3]}
25... exd5 {[%clk 0:01:25.5]} 26. Rxd5 {[%clk 0:01:40.2]} 26... Qc7 {[%clk
0:01:20.6]} 27. Rxc5 {[%clk 0:01:37]} 27... Rd1+ {[%clk 0:01:14.2]} 28. Kh2
{[%clk 0:01:35.7]} 28... Qd6 {[%clk 0:01:05.3]} 29. Rg5 {[%clk 0:01:32.7]} 29...
h6 {[%clk 0:01:02.8]} 30. Rd5 {[%clk 0:01:30.7]} 30... Rxd5 {[%clk 0:01:02.4]}
31. Bxd5 {[%clk 0:01:31.6]} 31... b6 {[%clk 0:01:00]} 32. Re8 {[%clk 0:01:26.5]}
32... Qd7 {[%clk 0:00:54.7]} 33. Re4 {[%clk 0:01:11.5]} 33... Kh8 {[%clk
0:00:52.4]} 34. Rf4 {[%clk 0:01:09.1]} 34... f5 {[%clk 0:00:51.4]} 35. Rf3
{[%clk 0:01:02.6]} 35... f4 {[%clk 0:00:43]} 36. Rxf4 {[%clk 0:01:00.8]} 36...
Rxf4 {[%clk 0:00:41.9]} 37. gxf4 {[%clk 0:01:01.7]} 37... Qd6 {[%clk 0:00:40.7]}
38. Kg3 {[%clk 0:01:00.4]} 38... Qf6 {[%clk 0:00:38.4]} 39. Qe8+ {[%clk
0:01:00.1]} 39... Bf8 {[%clk 0:00:38.7]} 40. Qd7 {[%clk 0:00:54.6]} 40... Bd6
{[%clk 0:00:37]} 41. Qg4 {[%clk 0:00:52.5]} 41... Qg7 {[%clk 0:00:34.9]} 42. f3
{[%clk 0:00:48.8]} 42... h5 {[%clk 0:00:34.9]} 43. Qxg7+ {[%clk 0:00:47.5]}
43... Kxg7 {[%clk 0:00:35.8]} 44. Kh4 {[%clk 0:00:47.6]} 44... Bxf4 {[%clk
0:00:34.3]} 45. Kxh5 {[%clk 0:00:47.9]} 45... Kf6 {[%clk 0:00:34.2]} 46. Kg4
{[%clk 0:00:48.2]} 46... Bd6 {[%clk 0:00:33.8]} 47. f4 {[%clk 0:00:48.1]} 47...
Bc7 {[%clk 0:00:33.6]} 48. Kf3 {[%clk 0:00:48.2]} 48... Bd6 {[%clk 0:00:33.6]}
49. Ke4 {[%clk 0:00:48.5]} 49... Bc7 {[%clk 0:00:33.9]} 50. Bb7 {[%clk
0:00:48.8]} 50... Ke7 {[%clk 0:00:30.4]} 51. Bc8 {[%clk 0:00:49.2]} 51... Bd6
{[%clk 0:00:28.6]} 52. Bh3 {[%clk 0:00:48.1]} 52... Bc7 {[%clk 0:00:26.1]} 53.
f5 {[%clk 0:00:40.3]} 53... Bd6 {[%clk 0:00:20.3]} 54. Kd5 {[%clk 0:00:39.4]}
54... Bc5 {[%clk 0:00:19.4]} 55. Kc6 {[%clk 0:00:38.6]} 55... Kf6 {[%clk
0:00:19.7]} 56. Kd5 {[%clk 0:00:34.8]} 56... Ke7 {[%clk 0:00:19.2]} 57. Ke5
{[%clk 0:00:34.3]} 57... Bd6+ {[%clk 0:00:19.3]} 58. Ke4 {[%clk 0:00:34.4]}
58... Ba3 {[%clk 0:00:16.8]} 59. Bf1 {[%clk 0:00:34.7]} 59... Kd6 {[%clk
0:00:17.3]} 60. Bd3 {[%clk 0:00:35]} 60... Bb2 {[%clk 0:00:17.7]} 61. Kf4 {[%clk
0:00:34.5]} 61... Bc3 {[%clk 0:00:18.1]} 62. Kg5 {[%clk 0:00:34]} 62... Ke7
{[%clk 0:00:18]} 63. Kg6 {[%clk 0:00:34.2]} 63... Bb2 {[%clk 0:00:18.3]} 64. Bc2
{[%clk 0:00:27]} 64... Bc3 {[%clk 0:00:18.2]} 65. Kg5 {[%clk 0:00:27.5]} 65...
Bb2 {[%clk 0:00:18.2]} 66. Kf4 {[%clk 0:00:27.7]} 66... Kd6 {[%clk 0:00:18.5]}
67. Ke4 {[%clk 0:00:28.4]} 67... Bf6 {[%clk 0:00:18]} 68. Bd1 {[%clk 0:00:28.4]}
68... Bb2 {[%clk 0:00:17.4]} 69. Bh5 {[%clk 0:00:29.1]} 69... Bf6 {[%clk
0:00:17.4]} 70. Bf7 {[%clk 0:00:29.5]} 70... Bc3 {[%clk 0:00:17.5]} 71. Bd5
{[%clk 0:00:29.1]} 71... Bf6 {[%clk 0:00:17.9]} 72. Kd3 {[%clk 0:00:28.2]} 72...
Kc5 {[%clk 0:00:18]} 73. Kc2 {[%clk 0:00:28.2]} 73... Kb4 {[%clk 0:00:18]} 74.
Be6 {[%clk 0:00:24.9]} 74... Ka3 {[%clk 0:00:17.9]} 75. Kd3 {[%clk 0:00:20.9]}
75... Kb4 {[%clk 0:00:18.2]} 76. Ke4 {[%clk 0:00:20.9]} 76... Kc5 {[%clk
0:00:18.8]} 77. Bd7 {[%clk 0:00:19.5]} 77... Kd6 {[%clk 0:00:18.9]} 78. Bb5
{[%clk 0:00:19.7]} 78... Kc5 {[%clk 0:00:19.5]} 79. Kf4 {[%clk 0:00:16.2]} 79...
Kd6 {[%clk 0:00:19.2]} 80. Kg4 {[%clk 0:00:14.5]} 80... Ke7 {[%clk 0:00:18.7]}
81. Kh5 {[%clk 0:00:14.2]} 81... Bd4 {[%clk 0:00:18.7]} 82. Kg6 {[%clk
0:00:14.8]} 82... Bb2 {[%clk 0:00:18.1]} 83. Bc6 {[%clk 0:00:13.8]} 83... Kd6
{[%clk 0:00:18]} 84. f6 {[%clk 0:00:05.9]} 84... Kxc6 {[%clk 0:00:18.1]} 85. f7
{[%clk 0:00:06]} 85... Ba3 {[%clk 0:00:18.5]} 86. Kg7 {[%clk 0:00:06.8]} 86...
a4 {[%clk 0:00:18]} 87. f8=Q {[%clk 0:00:03.1]} 87... Bxf8+ {[%clk 0:00:18.3]}
88. Kxf8 {[%clk 0:00:04]} 88... axb3 {[%clk 0:00:16.4]} 89. axb3 {[%clk
0:00:04.9]} 89... Kc5 {[%clk 0:00:17.1]} 90. Ke7 {[%clk 0:00:05.7]} 90... Kb4
{[%clk 0:00:17.9]} 91. Kd6 {[%clk 0:00:05.2]} 91... Kxb3 {[%clk 0:00:18.7]} 92.
c5 {[%clk 0:00:05.8]} 92... bxc5 {[%clk 0:00:18.4]} 93. Kxc5 {[%clk 0:00:06.7]}
1/2-1/2